fUSD/lending_fUSD_20240211
["ID","MTS","AMOUNT","RATE_DAILY","PERIOD"]
[313746591,1707655867207,-500.0,0.00036164,2]
[313746592,1707655867217,-1791.67,0.00036164,2]
[313746593,1707655867227,-500.0,0.00036164,2]
[313746594,1707655867237,-500.0,0.00036164,2]
[313746595,1707655867248,-500.0,0.00036164,2]
[313746596,1707655867258,-743.26,0.00036164,2]
[313746597,1707655867268,-620.36,0.00036164,2]
[313746598,1707655867277,-2220.74,0.00036164,2]
[313746599,1707655867288,-1761.67,0.00036164,2]
[313746600,1707655867298,-1582.98,0.00036164,2]
[313746601,1707655867307,-818.36,0.00036164,2]
[313746602,1707655867319,-652.93,0.00036164,2]
[313746603,1707655867329,-702.45,0.00036164,2]
[313746604,1707655867338,-500.0,0.00036164,2]
[313746605,1707655867366,-500.0,0.00036164,2]
[313746606,1707655867379,-2117.79,0.00036164,2]
[313746607,1707655867397,-500.0,0.00036164,2]
[313746608,1707655867407,-500.0,0.00036164,2]
[313746609,1707655867417,-1088.76,0.00036164,2]
[313746610,1707655867427,-476.78771932,0.00036164,2]
[313746611,1707655867437,-591.62,0.00036164,2]
[313746612,1707655867447,-2424.91,0.00036164,2]
[313746613,1707655867457,-537.12738405,0.00036164,2]
[313746614,1707655867467,-500.0,0.00036164,2]
[313746615,1707655867477,-3252.72,0.00036164,2]
[313746616,1707655867487,-630.45,0.00036164,2]
[313746617,1707655867497,-843.16,0.00036164,2]
[313746618,1707655867507,-500.0,0.00036164,2]
[313746619,1707655867517,-3054.65,0.00036164,2]
[313746620,1707655867527,-2769.56,0.00036164,2]
[313746621,1707655867537,-553.39278961,0.00036164,2]
[313746622,1707655867547,-500.0,0.00036164,2]
[313746623,1707655867558,-500.0,0.00036164,2]
[313746624,1707655867568,-1784.55,0.00036164,2]
[313746625,1707655867578,-500.0,0.00036164,2]
[313746626,1707655867588,-1352.16,0.00036164,2]
[313746627,1707655867598,-4083.37,0.00036164,2]
[313746628,1707655867608,-1145.25,0.00036164,2]
[313746629,1707655867617,-610.99,0.00036164,2]
[313746630,1707655867627,-500.0,0.00036164,2]
[313746631,1707655867637,-500.0,0.00036164,2]
[313746632,1707655867647,-500.0,0.00036164,2]
[313746633,1707655867657,-3291.31,0.00036164,2]
[313746634,1707655867667,-500.0,0.00036164,2]
[313746635,1707655867678,-572.06,0.00036164,2]
[313746636,1707655867688,-1305.68,0.00036164,2]
[313746637,1707655867699,-500.0,0.00036164,2]
[313746638,1707655867710,-1033.23,0.00036164,2]
[313746639,1707655867720,-799.44,0.00036164,2]
[313746640,1707655867730,-500.0,0.00036164,2]
[313746641,1707655867741,-500.0,0.00036164,2]
[313746642,1707655867751,-640.39,0.00036164,2]
[313746643,1707655867762,-3827.85,0.00036164,2]
[313746644,1707655867772,-500.0,0.00036164,2]
[313746645,1707655867784,-500.0,0.00036164,2]
[313746646,1707655867794,-736.87,0.00036164,2]
[313746647,1707655867806,-500.0,0.00036164,2]
[313746648,1707655867817,-504.84,0.00036164,2]
[313746649,1707655867828,-9440.41,0.00036164,2]
[313746650,1707655867838,-1587.67,0.00036164,2]
[313746651,1707655867850,-526.1486435,0.00036164,2]
[313746652,1707655867861,-846.76,0.00036164,2]
[313746653,1707655867871,-500.0,0.00036164,2]
[313746654,1707655867880,-1278.31,0.00036164,2]
[313746655,1707655867890,-500.0,0.00036164,2]
[313746656,1707655867898,-2174.51,0.00036164,2]
[313746657,1707655867909,-4621.43,0.00036164,2]
[313746658,1707655867919,-2513.42,0.00036164,2]
[313746659,1707655867928,-151.50624563,0.00036204,2]
[313746660,1707655867938,-180.32,0.00036215,2]
[313746661,1707655867949,-2109.51191883,0.00036301,30]
[313746662,1707655867958,-151.50624563,0.00036372,2]
[313746663,1707655867969,-2011.86,0.0003638,2]
[313746664,1707655867978,-203.53500204,0.000364,2]
[313746665,1707655867987,-528.18,0.00036438,2]
[313746666,1707655867997,-547.62,0.00036438,2]
[313746667,1707655868006,-509.31,0.00036438,2]
[313746668,1707655868015,-522.18,0.00036438,2]
[313746669,1707655868025,-672.08,0.00036438,2]
[313746670,1707655868201,-523.44668575,0.00036438,2]
[313746671,1707655868211,-612.27760258,0.00036438,2]
[313746672,1707655868220,-500.0,0.00036438,2]
[313746673,1707655868230,-549.46,0.00036438,2]
[313746674,1707655868239,-500.0,0.00036438,2]
[313746675,1707655868248,-500.0,0.00036438,2]
[313746676,1707655868258,-500.0,0.00036438,2]
[313746677,1707655868267,-500.0,0.00036438,2]
[313746678,1707655868276,-500.0,0.00036438,2]
[313746679,1707655868286,-500.0,0.00036438,2]
[313746680,1707655868295,-500.0,0.00036438,2]
[313746681,1707655868305,-500.0,0.00036438,2]
[313746682,1707655868314,-500.0,0.00036438,2]
[313746683,1707655868323,-676.55,0.00036438,2]
[313746684,1707655868333,-500.0,0.00036438,2]
[313746685,1707655868345,-870.33,0.00036438,2]
[313746686,1707655868355,-500.0,0.00036438,2]
[313746687,1707655868364,-565.02,0.00036438,2]
[313746688,1707655868374,-653.29,0.00036438,2]
[313746689,1707655868383,-500.0,0.00036438,2]
[313746690,1707655868392,-500.0,0.00036438,2]
[313746691,1707655868402,-500.0,0.00036438,2]
[313746692,1707655868411,-500.0,0.00036438,2]
[313746693,1707655868420,-561.72,0.00036438,2]
[313746694,1707655868429,-500.0,0.00036438,2]
[313746695,1707655868438,-500.0,0.00036438,2]
[313746696,1707655868448,-500.0,0.00036438,2]
[313746697,1707655868457,-500.0,0.00036438,8]
[313746698,1707655868467,-500.0,0.00036438,2]
[313746699,1707655868476,-671.32,0.00036438,2]
[313746700,1707655868485,-281.20098368,0.00036438,2]
[313746701,1707655868495,-500.0,0.00036438,2]
[313746702,1707655868504,-500.0,0.00036438,2]
[313746703,1707655868514,-500.0,0.00036438,2]
[313746704,1707655868523,-500.0,0.00036438,2]
[313746705,1707655868534,-500.0,0.00036438,2]
[313746706,1707655868543,-500.0,0.00036438,2]
[313746707,1707655868553,-214.70702355,0.00036438,2]
[313746708,1707655868562,-500.0,0.00036438,2]
[313746709,1707655868572,-578.19,0.00036438,2]
[313746710,1707655868581,-500.0,0.00036438,2]
[313746711,1707655868590,-500.0,0.00036438,2]
[313746712,1707655868599,-500.0,0.00036438,2]
[313746713,1707655868608,-500.0,0.00036438,2]
[313746714,1707655868618,-500.0,0.00036438,2]
[313746715,1707655868627,-500.0,0.00036438,2]
[313746716,1707655868637,-500.0,0.00036438,2]
[313746717,1707655868646,-500.0,0.00036438,2]
[313746718,1707655868655,-733.94,0.00036438,2]
[313746719,1707655868665,-500.0,0.00036438,2]
[313746720,1707655868674,-500.0,0.00036438,2]
[313746721,1707655868683,-648.67887054,0.00036438,2]
[313746722,1707655868694,-500.0,0.00036438,2]
[313746723,1707655868707,-529.24611053,0.00036438,2]
[313746724,1707655868717,-500.0,0.00036438,2]
[313746725,1707655868727,-500.0,0.00036438,2]
[313746726,1707655868744,-500.0,0.00036438,2]
[313746727,1707655868754,-500.0,0.00036438,2]
[313746728,1707655868780,-500.0,0.00036438,2]
[313746729,1707655868791,-500.0,0.00036438,2]
[313746730,1707655868811,-514.3,0.00036438,2]
[313746731,1707655868821,-500.0,0.00036438,2]
[313746732,1707655868838,-1261.23,0.00036438,2]
[313746733,1707655868850,-500.0,0.00036438,2]
[313746734,1707655868859,-808.4,0.00036438,2]
[313746735,1707655868869,-220.33515079,0.00036438,2]
[313746736,1707655868878,-500.0,0.00036438,2]
[313746737,1707655868899,-563.72,0.00036438,2]
[313746738,1707655868909,-1119.73,0.00036438,2]
[313746739,1707655868918,-531.6295113,0.00036438,2]
[313746740,1707655868927,-674.6,0.00036438,2]
[313746741,1707655868937,-500.0,0.00036438,2]
[313746742,1707655868947,-1094.72,0.00036438,2]
[313746743,1707655868956,-1388.25,0.00036438,2]
[313746744,1707655868968,-500.0,0.00036438,2]
[313746745,1707655868977,-560.6,0.00036438,2]
[313746746,1707655868986,-500.0,0.00036438,2]
[313746747,1707655868995,-500.0,0.00036438,2]
[313746748,1707655869005,-1374.95,0.00036438,2]
[313746749,1707655869014,-500.0,0.00036438,2]
[313746750,1707655869024,-500.0,0.00036438,2]
[313746751,1707655869034,-879.46,0.00036438,2]
[313746752,1707655869043,-500.0,0.00036438,2]
[313746753,1707655869053,-602.4,0.00036438,2]
[313746754,1707655869063,-500.0,0.00036438,2]
[313746755,1707655869073,-1319.63,0.00036438,2]
[313746756,1707655869084,-500.0,0.00036438,2]
[313746757,1707655869094,-634.74,0.00036438,2]
[313746758,1707655869104,-639.93,0.00036438,2]
[313746759,1707655869114,-981.93,0.00036438,2]
[313746760,1707655869136,-1000.0,0.00036438,7]
[313746761,1707655869146,-500.0,0.00036438,2]
[313746762,1707655869173,-500.0,0.00036438,2]
[313746763,1707655869183,-544.68,0.00036438,2]
[313746764,1707655869201,-773.34,0.00036438,2]
[313746765,1707655869212,-529.31,0.00036438,2]
[313746766,1707655869226,-505.46480171,0.00036438,2]
[313746767,1707655869238,-500.0,0.00036438,2]
[313746768,1707655869249,-500.0,0.00036438,2]
[313746769,1707655869259,-988.16,0.00036438,2]
[313746770,1707655869268,-533.52,0.00036438,2]
[313746771,1707655869278,-994.82,0.00036438,2]
[313746772,1707655869298,-500.0,0.00036438,2]
[313746773,1707655869308,-671.02,0.00036438,2]
[313746774,1707655869318,-926.35,0.00036438,2]
[313746775,1707655869327,-500.0,0.00036438,2]
[313746776,1707655869340,-885.55,0.00036438,2]
[313746777,1707655869350,-699.95,0.00036438,2]
[313746778,1707655869371,-701.19,0.00036438,2]
[313746779,1707655869381,-572.62155123,0.00036438,2]
[313746780,1707655869404,-1310.37,0.00036438,2]
[313746781,1707655869419,-500.0,0.00036438,2]
[313746782,1707655869431,-1371.84,0.00036438,2]
[313746783,1707655869448,-521.94,0.00036438,2]
[313746784,1707655869458,-500.0,0.00036438,2]
[313746785,1707655869487,-1150.02,0.00036438,2]
[313746786,1707655869498,-650.15,0.00036438,2]
[313746787,1707655869514,-613.40382945,0.00036438,2]
[313746788,1707655869525,-1101.17,0.00036438,2]
[313746789,1707655869539,-500.0,0.00036438,2]
[313746790,1707655869552,-995.05,0.00036438,2]
[313746791,1707655869562,-500.0,0.00036438,2]
[313746792,1707655869575,-500.0,0.00036438,2]
[313746793,1707655869586,-500.0,0.00036438,2]
[313746794,1707655869598,-973.3,0.00036438,2]
[313746795,1707655869611,-1070.5,0.00036438,2]
[313746796,1707655869621,-1054.78,0.00036438,2]
[313746797,1707655869634,-708.42,0.00036438,2]
[313746798,1707655869646,-500.0,0.00036438,2]
[313746799,1707655869658,-1456.47,0.00036438,2]
[313746800,1707655869668,-493.80329612,0.00036438,2]
[313746801,1707655869684,-1278.26,0.00036438,2]
[313746802,1707655869706,-1035.49,0.00036438,2]
[313746803,1707655869722,-1163.3,0.00036438,2]
[313746804,1707655869732,-500.0,0.00036438,2]
[313746805,1707655869742,-500.0,0.00036438,2]
[313746806,1707655869752,-523.0547425,0.00036438,2]
[313746807,1707655869762,-500.0,0.00036438,2]
[313746808,1707655869793,-1177.67,0.00036438,2]
[313746809,1707655869804,-955.06,0.00036438,2]
[313746810,1707655869814,-500.0,0.00036438,2]
[313746811,1707655869823,-500.0,0.00036438,2]
[313746812,1707655869841,-500.0,0.00036438,2]
[313746813,1707655869862,-500.0,0.00036438,2]
[313746814,1707655869876,-500.0,0.00036438,2]
[313746815,1707655869887,-1535.23,0.00036438,2]
[313746816,1707655869900,-1129.37,0.00036438,2]
[313746817,1707655869910,-500.0,0.00036438,2]
[313746818,1707655869920,-498.2108817,0.00036438,2]
[313746819,1707655869930,-500.0,0.00036438,2]
[313746820,1707655869939,-1554.94,0.00036438,2]
[313746821,1707655869950,-1410.9,0.00036438,2]
[313746822,1707655869961,-500.0,0.00036438,2]
[313746823,1707655869970,-500.0,0.00036438,2]
[313746824,1707655869979,-500.0,0.00036438,2]
[313746825,1707655869988,-670.47,0.00036438,2]
[313746826,1707655869998,-586.82011091,0.00036438,2]
[313746827,1707655870007,-500.0,0.00036438,2]
[313746828,1707655870016,-1312.31,0.00036438,2]
[313746829,1707655870025,-500.0,0.00036438,2]
[313746830,1707655870034,-1074.14,0.00036438,2]
[313746831,1707655870044,-170.99561094,0.00036438,2]
[313746832,1707655870053,-500.0,0.00036438,2]
[313746833,1707655870063,-547.26,0.00036438,2]
[313746834,1707655870072,-500.0,0.00036438,2]
[313746835,1707655870082,-500.0,0.00036438,2]
[313746836,1707655870091,-500.0,0.00036438,2]
[313746837,1707655870100,-500.0,0.00036438,2]
[313746838,1707655870110,-500.0,0.00036438,2]
[313746839,1707655870119,-570.43786862,0.00036438,2]
[313746840,1707655870128,-2082.44,0.00036438,2]
[313746841,1707655870137,-713.26,0.00036438,2]
[313746842,1707655870147,-500.0,0.00036438,2]
[313746843,1707655870156,-500.0,0.00036438,2]
[313746844,1707655870166,-500.0,0.00036438,2]
[313746845,1707655870176,-388.07588081,0.00036438,2]
[313746846,1707655870185,-587.68,0.00036438,2]
[313746847,1707655870195,-618.3,0.00036438,2]
[313746848,1707655870205,-607.39631312,0.00036438,2]
[313746849,1707655870214,-500.0,0.00036438,2]
[313746850,1707655870224,-568.69242069,0.00036438,2]
[313746851,1707655870233,-500.0,0.00036438,2]
[313746852,1707655870242,-1262.4,0.00036438,2]
[313746853,1707655870251,-500.0,0.00036438,2]
[313746854,1707655870260,-500.0,0.00036438,2]
[313746855,1707655870270,-500.0,0.00036438,2]
[313746856,1707655870279,-500.0,0.00036438,2]
[313746857,1707655870288,-812.45,0.00036438,2]
[313746858,1707655870298,-500.0,0.00036438,2]
[313746859,1707655870307,-723.13,0.00036438,2]
[313746860,1707655870317,-500.0,0.00036438,2]
[313746861,1707655870326,-500.0,0.00036438,2]
[313746862,1707655870335,-515.74921244,0.00036438,2]
[313746863,1707655870345,-586.11773743,0.00036438,2]
[313746864,1707655870354,-1031.16,0.00036438,2]
[313746865,1707655870365,-1252.15,0.00036438,2]
[313746866,1707655870374,-500.0,0.00036438,2]
[313746867,1707655870383,-500.0,0.00036438,2]
[313746868,1707655870393,-1174.8,0.00036438,2]
[313746869,1707655870403,-500.0,0.00036438,2]
[313746870,1707655870413,-500.0,0.00036438,2]
[313746871,1707655870423,-1327.81,0.00036438,2]
[313746872,1707655870433,-500.98,0.00036438,2]
[313746873,1707655870442,-513.73,0.00036438,2]
[313746874,1707655870453,-500.0,0.00036438,2]
[313746875,1707655870462,-500.0,0.00036438,2]
[313746876,1707655870471,-500.0,0.00036438,2]
[313746877,1707655870481,-500.0,0.00036438,2]
[313746878,1707655870490,-500.0,0.00036438,2]
[313746879,1707655870500,-500.0,0.00036438,2]
[313746880,1707655870509,-500.0,0.00036438,2]
[313746881,1707655870519,-1042.21,0.00036438,2]
[313746882,1707655870529,-1459.38,0.00036438,2]
[313746883,1707655870538,-500.0,0.00036438,2]
[313746884,1707655870547,-154.73921908,0.00036438,2]
[313746885,1707655870557,-500.0,0.00036438,2]
[313746886,1707655870567,-507.05,0.00036438,2]
[313746887,1707655870576,-500.0,0.00036438,2]
[313746888,1707655870586,-500.0,0.00036438,2]
[313746889,1707655870594,-500.0,0.00036438,2]
[313746890,1707655870604,-500.0,0.00036438,2]
[313746891,1707655870613,-638.34,0.00036438,2]
[313746892,1707655870623,-500.0,0.00036438,2]
[313746893,1707655870632,-500.0,0.00036438,2]
[313746894,1707655870641,-500.0,0.00036438,2]
[313746895,1707655870650,-1861.31,0.00036438,2]
[313746896,1707655870659,-1001.36,0.00036438,2]
[313746897,1707655870668,-2145.87,0.00036438,2]
[313746898,1707655870678,-500.0,0.00036438,2]
[313746899,1707655870687,-500.0,0.00036438,2]
[313746900,1707655870696,-500.0,0.00036438,2]
[313746901,1707655870705,-164.33500485,0.00036438,2]
[313746902,1707655870714,-934.28,0.00036438,2]
[313746903,1707655870723,-500.0,0.00036438,2]
[313746904,1707655870732,-1666.06,0.00036438,2]
[313746905,1707655870741,-1497.23,0.00036438,2]
[313746906,1707655870751,-500.0,0.00036438,2]
[313746907,1707655870760,-500.0,0.00036438,2]
[313746908,1707655870770,-1256.32,0.00036438,2]
[313746909,1707655870778,-613.88,0.00036438,2]
[313746910,1707655870787,-500.0,0.00036438,2]
[313746911,1707655870797,-1474.59,0.00036438,2]
[313746912,1707655870806,-500.0,0.00036438,2]
[313746913,1707655870816,-777.41,0.00036438,2]
[313746914,1707655870826,-702.15,0.00036438,2]
[313746915,1707655870836,-500.0,0.00036438,2]
[313746916,1707655870880,-500.0,0.00036438,2]
[313746917,1707655870889,-770.44,0.00036438,2]
[313746918,1707655870898,-2223.95,0.00036438,2]
[313746919,1707655870908,-500.0,0.00036438,2]
[313746920,1707655870917,-500.0,0.00036438,2]
[313746921,1707655870927,-914.93,0.00036438,2]
[313746922,1707655870937,-1171.46,0.00036438,2]
[313746923,1707655870946,-500.0,0.00036438,2]
[313746924,1707655870955,-500.0,0.00036438,2]
[313746925,1707655870965,-500.0,0.00036438,2]
[313746926,1707655870974,-177.36620099,0.00036438,2]
[313746927,1707655870984,-500.0,0.00036438,2]
[313746928,1707655870993,-500.0,0.00036438,2]
[313746929,1707655871002,-500.0,0.00036438,2]
[313746930,1707655871011,-770.73,0.00036438,2]
[313746931,1707655871020,-1108.41,0.00036438,2]
[313746932,1707655871030,-1968.34,0.00036438,2]
[313746933,1707655871039,-500.0,0.00036438,2]
[313746934,1707655871049,-500.0,0.00036438,2]
[313746935,1707655871058,-1437.64,0.00036438,2]
[313746936,1707655871068,-500.0,0.00036438,2]
[313746937,1707655871077,-182.33613432,0.00036438,2]
[313746938,1707655871086,-500.0,0.00036438,2]
[313746939,1707655871096,-532.71,0.00036438,2]
[313746940,1707655871105,-500.0,0.00036438,2]
[313746941,1707655871114,-519.44,0.00036438,2]
[313746942,1707655871123,-1570.05,0.00036438,2]
[313746943,1707655871133,-555.11,0.00036438,2]
[313746944,1707655871142,-576.51281014,0.00036438,2]
[313746945,1707655871151,-500.0,0.00036438,2]
[313746946,1707655871160,-500.0,0.00036438,2]
[313746947,1707655871170,-500.0,0.00036438,2]
[313746948,1707655871180,-500.0,0.00036438,2]
[313746949,1707655871189,-606.59,0.00036438,2]
[313746950,1707655871198,-1083.91,0.00036438,2]
[313746951,1707655871208,-500.0,0.00036438,2]
[313746952,1707655871217,-500.0,0.00036438,2]
[313746953,1707655871227,-500.0,0.00036438,2]
[313746954,1707655871257,-597.7389885,0.00036438,2]
[313746955,1707655871268,-500.0,0.00036438,2]
[313746956,1707655871278,-500.0,0.00036438,2]
[313746957,1707655871288,-512.16908613,0.00036438,2]
[313746958,1707655871297,-500.0,0.00036438,2]
[313746959,1707655871307,-500.0,0.00036438,2]
[313746960,1707655871318,-500.0,0.00036438,2]
[313746961,1707655871327,-500.0,0.00036438,2]
[313746962,1707655871562,-500.0,0.00036438,2]
[313746963,1707655871573,-500.0,0.00036438,2]
[313746964,1707655871583,-990.85,0.00036438,2]
[313746965,1707655871594,-500.0,0.00036438,2]
[313746966,1707655871603,-514.81,0.00036438,2]
[313746967,1707655871613,-528.51886332,0.00036438,2]
[313746968,1707655871624,-1293.02,0.00036438,2]
[313746969,1707655871634,-500.0,0.00036438,2]
[313746970,1707655871643,-500.0,0.00036438,2]
[313746971,1707655871652,-500.0,0.00036438,2]
[313746972,1707655871663,-582.34860603,0.00036438,2]
[313746973,1707655871672,-500.0,0.00036438,2]
[313746974,1707655871681,-500.0,0.00036438,2]
[313746975,1707655871690,-500.0,0.00036438,2]
[313746976,1707655871699,-500.0,0.00036438,2]
[313746977,1707655871708,-500.0,0.00036438,2]
[313746978,1707655871717,-532.17,0.00036438,2]
[313746979,1707655871726,-536.67,0.00036438,2]
[313746980,1707655871735,-671.89,0.00036438,2]
[313746981,1707655871745,-500.0,0.00036438,2]
[313746982,1707655871754,-563.43,0.00036438,2]
[313746983,1707655871763,-500.0,0.00036438,2]
[313746984,1707655871772,-500.0,0.00036438,2]
[313746985,1707655871781,-500.0,0.00036438,2]
[313746986,1707655871791,-536.94,0.00036438,2]
[313746987,1707655871800,-500.0,0.00036438,2]
[313746988,1707655871809,-500.0,0.00036438,2]
[313746989,1707655871818,-1616.8,0.00036438,2]
[313746990,1707655871827,-500.0,0.00036438,2]
[313746991,1707655871837,-572.19,0.00036438,2]
[313746992,1707655871846,-500.0,0.00036438,2]
[313746993,1707655871856,-500.0,0.00036438,2]
[313746994,1707655871866,-533.66,0.00036438,2]
[313746995,1707655871877,-500.0,0.00036438,2]
[313746996,1707655871886,-500.0,0.00036438,2]
[313746997,1707655871895,-500.0,0.00036438,2]
[313746998,1707655871904,-799.17,0.00036438,2]
[313746999,1707655871914,-500.0,0.00036438,2]
[313747000,1707655871923,-513.91,0.00036438,2]
[313747001,1707655871932,-5353.75,0.00036438,2]
[313747002,1707655871941,-763.46,0.00036438,2]
[313747003,1707655871950,-500.0,0.00036438,2]
[313747004,1707655871959,-500.0,0.00036438,2]
[313747005,1707655871968,-500.0,0.00036438,2]
[313747006,1707655871981,-1239.22,0.00036438,2]
[313747007,1707655871991,-500.0,0.00036438,2]
[313747008,1707655872000,-500.0,0.00036438,2]
[313747009,1707655872011,-550.95,0.00036438,2]
[313747010,1707655872020,-150.0,0.00036438,2]
[313747011,1707655872030,-500.0,0.00036438,2]
[313747012,1707655872040,-500.0,0.00036438,2]
[313747013,1707655872049,-756.61,0.00036438,2]
[313747014,1707655872060,-500.0,0.00036438,2]
[313747015,1707655872069,-500.0,0.00036438,2]
[313747016,1707655872079,-500.0,0.00036438,2]
[313747017,1707655872090,-500.0,0.00036438,2]
[313747018,1707655872101,-734.46,0.00036438,2]
[313747019,1707655872111,-646.84,0.00036438,2]
[313747020,1707655872122,-500.0,0.00036438,2]
[313747021,1707655872131,-500.0,0.00036438,2]
[313747022,1707655872141,-500.0,0.00036438,2]
[313747023,1707655872151,-500.0,0.00036438,2]
[313747024,1707655872161,-796.38,0.00036438,2]
[313747025,1707655872171,-500.0,0.00036438,2]
[313747026,1707655872181,-1843.01,0.00036438,2]
[313747027,1707655872190,-1266.48,0.00036438,2]
[313747028,1707655872201,-500.0,0.00036438,2]
[313747029,1707655872210,-500.0,0.00036438,2]
[313747030,1707655872220,-818.94,0.00036438,2]
[313747031,1707655872229,-500.0,0.00036438,2]
[313747032,1707655872238,-500.0,0.00036438,2]
[313747033,1707655872248,-500.0,0.00036438,2]
[313747034,1707655872259,-784.21,0.00036438,2]
[313747035,1707655872269,-500.0,0.00036438,2]
[313747036,1707655872278,-500.0,0.00036438,2]
[313747037,1707655872289,-490.83045525,0.00036438,2]
[313747038,1707655872299,-602.23,0.00036438,2]
[313747039,1707655872308,-665.31,0.00036438,2]
[313747040,1707655872318,-3464.65,0.00036438,2]
[313747041,1707655872328,-500.0,0.00036438,2]
[313747042,1707655872339,-512.74661188,0.00036438,2]
[313747043,1707655872349,-500.0,0.00036438,2]
[313747044,1707655872359,-500.0,0.00036438,2]
[313747045,1707655872369,-500.0,0.00036438,2]
[313747046,1707655872378,-500.0,0.00036438,2]
[313747047,1707655872388,-10000.0,0.00036438,2]
[313747048,1707655872398,-500.0,0.00036438,2]
[313747049,1707655872407,-6797.18,0.00036438,2]
[313747050,1707655872417,-1383.58,0.00036438,2]
[313747051,1707655872428,-500.0,0.00036438,2]
[313747052,1707655872438,-1565.71,0.00036438,2]
[313747053,1707655872448,-500.0,0.00036438,2]
[313747054,1707655872459,-500.0,0.00036438,2]
[313747055,1707655872468,-500.0,0.00036438,2]
[313747056,1707655872478,-500.0,0.00036438,2]
[313747057,1707655872488,-500.0,0.00036438,2]
[313747058,1707655872497,-3979.74,0.00036438,2]
[313747059,1707655872507,-665.46,0.00036438,2]
[313747060,1707655872516,-1872.64,0.00036438,2]
[313747061,1707655872529,-500.0,0.00036438,2]
[313747062,1707655872538,-648.18,0.00036438,2]
[313747063,1707655872548,-667.71,0.00036438,2]
[313747064,1707655872557,-500.0,0.00036438,2]
[313747065,1707655872567,-10000.0,0.00036438,2]
[313747066,1707655872583,-5727.68,0.00036438,2]
[313747067,1707655872592,-2938.74,0.00036438,2]
[313747068,1707655872602,-500.0,0.00036438,2]
[313747069,1707655872611,-500.0,0.00036438,2]
[313747070,1707655872621,-1920.35,0.00036438,2]
[313747071,1707655872631,-500.0,0.00036438,2]
[313747072,1707655872640,-500.0,0.00036438,2]
[313747073,1707655872649,-500.0,0.00036438,2]
[313747074,1707655872659,-1732.31,0.00036438,2]
[313747075,1707655872669,-739.69,0.00036438,2]
[313747076,1707655872679,-2203.12,0.00036438,2]
[313747077,1707655872689,-500.0,0.00036438,2]
[313747078,1707655872699,-500.0,0.00036438,2]
[313747079,1707655872709,-656.12,0.00036438,2]
[313747080,1707655872719,-1414.44,0.00036438,2]
[313747081,1707655872729,-679.31,0.00036438,2]
[313747082,1707655872738,-500.0,0.00036438,2]
[313747083,1707655872748,-665.44,0.00036438,2]
[313747084,1707655872758,-500.0,0.00036438,2]
[313747085,1707655872768,-500.0,0.00036438,2]
[313747086,1707655872777,-1501.1,0.00036438,2]
[313747087,1707655872788,-500.0,0.00036438,2]
[313747088,1707655872797,-500.0,0.00036438,2]
[313747089,1707655872807,-416.36455055,0.00036438,2]
[313747090,1707655872817,-721.83,0.00036438,2]